fUST/lending_fUST_20260115
["ID","MTS","AMOUNT","RATE_DAILY","PERIOD"]
[401992023,1768446639610,-177.17,0.000209,2]
[401992025,1768446639620,-201.61,0.000209,2]
[401992027,1768446639629,-389.61301286,0.0002097,2]
[401992028,1768446639638,-277.44262935,0.00021,2]
[401992029,1768446639647,-42355.45436533,0.00021,2]
[401992030,1768446639657,-3924.84,0.00021,2]
[401992031,1768446639666,-26966.75,0.00021,2]
[401992032,1768446639675,-4433.34621719,0.00021138,5]
[401992033,1768446639685,-377.5822533,0.00021226,2]
[401992034,1768446639695,-377.5822533,0.00021226,2]
[401992035,1768446639705,-377.6837282,0.00021226,2]
[401992036,1768446639714,-154.4290986,0.00021347,2]
[401992037,1768446639723,-153.0,0.00021347,2]
[401992038,1768446639733,-153.0,0.00021347,2]
[401992039,1768446639742,-496.47127164,0.00021355,2]
[401992040,1768446639751,-550.0,0.0002137,2]
[401992041,1768446639761,-1000.0,0.00021728,10]
[401992043,1768446639774,-492.0,0.00021728,10]
[401992044,1768446639783,-661.2,0.00021734,2]
[401992045,1768446639793,-778.0,0.000219,2]
[401992046,1768446639802,-514.84070869,0.00021903,2]
[401992047,1768446639812,-589.243937,0.00021918,2]
[401992048,1768446639821,-650.0,0.00021918,2]
[401992049,1768446639831,-2144.6,0.00022,7]
[401992050,1768446639842,-272.93180544,0.00022,20]
[401992051,1768446639853,-163.0,0.00022,2]
[401992052,1768446639863,-155.89225561,0.00022055,6]
[401992053,1768446639873,-447.62622824,0.00022078,2]
[401992054,1768446639882,-1790.50491295,0.00022078,2]
[401992055,1768446639893,-7162.01965178,0.00022078,2]
[401992056,1768446639903,-1737.15488662,0.00022078,2]
[401992057,1768446639915,-3908.5984949,0.00022078,2]
[401992058,1768446639925,-806.61476763,0.00022078,2]
[401992059,1768446639935,-3223.23261143,0.00022078,2]
[401992060,1768446639946,-6948.61954649,0.00022078,2]
[401992061,1768446639956,-1797.27233448,0.00022078,2]
[401992062,1768446639966,-208.4623184,0.00022099,2]
[401992063,1768446639975,-641.3053247,0.00022099,2]
[401992064,1768446639985,-163.0,0.00022192,7]
[401992065,1768446639995,-755.1645066,0.00022219,2]
[401992066,1768446640004,-5765.31924314,0.00022344,2]
[401992067,1768446640014,-26966.75,0.000224,2]
[401992068,1768446640025,-533.88981491,0.00022451,2]
[401992069,1768446640034,-300.0,0.00022466,2]
[401992070,1768446640046,-200.0,0.00022466,2]
[401992071,1768446640057,-750.0,0.00022466,2]
[401992072,1768446640066,-151.0,0.000225,5]
[401992073,1768446640076,-177.17,0.000225,7]
[401992074,1768446640087,-3924.84,0.000225,14]
[401992075,1768446640097,-201.61,0.000225,7]
[401992076,1768446640107,-202.0,0.00022603,7]
[401992077,1768446640118,-194.2006467,0.00022619,2]
[401992078,1768446640128,-194.2006467,0.00022619,2]
[401992079,1768446640138,-194.2006467,0.00022619,2]
[401992080,1768446640148,-661.2,0.00022668,2]
[401992081,1768446640159,-194.2006467,0.00022717,2]
[401992082,1768446640169,-388.4012934,0.00022717,2]
[401992083,1768446640182,-194.2006467,0.00022717,2]
[401992084,1768446640191,-194.2006467,0.00022717,2]
[401992085,1768446640201,-16900.147422,0.00022717,30]
[401992086,1768446640211,-160.0,0.00022736,3]
[401992087,1768446640220,-3761.0,0.00022741,2]
[401992088,1768446640229,-4906.403738,0.00022741,30]
[401992089,1768446640239,-5000.0,0.00022768,2]
[401992090,1768446640248,-7549.99590127,0.0002278,2]
[401992092,1768446640735,-441.15452271,0.00019459,2]
[401992093,1768446640744,-558.15309419,0.0002278,2]
[401992094,1768446640755,-304.33574998,0.0002278,2]
[401992109,1768446643412,-908.51,0.0001487,2]
[401992110,1768446643441,-931.63,0.0001487,2]
[401992125,1768446646181,-4732.09729883,0.0001487,2]
[401992126,1768446646191,-377.5822533,0.0001947,2]
[401992127,1768446646200,-1764.61809083,0.00020994,2]
[401992128,1768446646210,-3966.42031367,0.00022528,2]
[401992129,1768446646219,-770.87320566,0.0002278,2]
[401992131,1768446789907,500.0,0.00027397,120]
[401992135,1768447106680,500.0,0.00027397,120]
[401992138,1768447420436,500.0,0.00027397,120]
[401992146,1768447733853,500.0,0.00027397,120]
[401992147,1768447802591,152.83,5e-05,2]
[401992148,1768447803117,152.83,5.2e-05,2]
[401992149,1768447803297,152.83,5.4e-05,2]
[401992150,1768447803631,152.83,5.6e-05,2]
[401992151,1768447803970,152.83,5.9e-05,2]
[401992152,1768447804268,152.83,6.1e-05,2]
[401992153,1768447804612,152.83,6.3e-05,2]
[401992154,1768447804924,152.83,6.5e-05,2]
[401992155,1768447807100,152.83,6.7e-05,2]
[401992156,1768447807478,152.83,6.9e-05,2]
[401992157,1768447807817,152.83,7.1e-05,2]
[401992158,1768447808153,152.83,7.4e-05,2]
[401992159,1768447808615,152.83,7.6e-05,2]
[401992160,1768447809010,152.83,7.8e-05,2]
[401992161,1768447809348,152.83,8e-05,2]
[401992162,1768447809681,152.83,8.2e-05,2]
[401992163,1768447810092,152.83,8.4e-05,2]
[401992164,1768447810424,152.83,8.6e-05,2]
[401992165,1768447810737,152.83,8.9e-05,2]
[401992166,1768447811127,152.83,9.1e-05,2]
[401992167,1768447811471,152.83,9.3e-05,2]
[401992168,1768447814048,-152.83,9.5e-05,2]
[401992217,1768447832223,-152.83,9.7e-05,2]
[401992219,1768447832234,-152.83,9.9e-05,2]
[401992221,1768447832244,-370.89786169,0.0001,2]
[401992223,1768447832253,-312.38717659,0.0001,2]
[401992225,1768447832265,-247.61282341,0.0001,2]
[401992227,1768447832275,-152.83,0.000101,2]
[401992230,1768447832284,-152.83,0.000104,2]
[401992233,1768447832294,-152.83,0.000106,2]
[401992236,1768447832305,-152.83,0.000108,2]
[401992238,1768447832314,-203.50484346,0.00011636,2]
[401992240,1768447832323,-240.13571528,0.00013636,2]
[401992242,1768447832334,-267.0,0.0001427,2]
[401992244,1768447832344,-7154.45023734,0.00014271,2]
[401992274,1768447842786,-486.88727554,0.00014271,2]
[401992564,1768447846352,-391.42400072,0.00014271,2]
[401992565,1768447846364,-1428.78710934,0.00014271,2]
[401992580,1768447877455,2596.3879324,0.00027396,120]
[401992584,1768448048640,500.0,0.00027397,120]
[401992586,1768448190627,186.1140801,0.00024521,120]
[401992589,1768448361437,500.0,0.00027397,120]
[401992590,1768448672043,500.0,0.00027397,120]
[401992630,1768448982115,500.0,0.00027397,120]
[401992645,1768449032346,-300.0,0.00012325,2]
[401992647,1768449032357,-300.0,0.00012325,2]
[401992648,1768449032366,-300.0,0.00012325,2]
[401992650,1768449032375,-1200.0,0.00012325,2]
[401992651,1768449032385,-594.0,0.00012325,2]
[401992653,1768449032395,-357.29463914,0.00012326,2]
[401992654,1768449032405,-475.07646599,0.00012326,2]
[401992655,1768449032415,-500.0,0.00012326,2]
[401992656,1768449032424,-500.0,0.00012326,2]
[401992658,1768449032434,-500.0,0.00012326,2]
[401992659,1768449032444,-500.0,0.00012326,2]
[401992660,1768449032454,-500.0,0.00012326,2]
[401992661,1768449032464,-500.0,0.00012326,2]
[401992662,1768449032474,-500.0,0.00012326,2]
[401992663,1768449032484,-500.0,0.00012326,2]
[401992664,1768449032493,-500.0,0.00012326,2]
[401992665,1768449032503,-500.0,0.00012326,2]
[401992666,1768449032512,-75.72689639,0.00012326,2]
[401992667,1768449032524,-424.27310361,0.00012326,2]
[401992668,1768449032534,-379.74600811,0.00012326,2]
[401992669,1768449032551,-120.25399189,0.00012326,2]
[401992670,1768449032560,-241.95586083,0.00012326,2]
[401992671,1768449032570,-500.0,0.00012326,2]
[401992672,1768449032579,-500.0,0.00012326,2]
[401992673,1768449032589,-500.0,0.00012326,2]
[401992674,1768449032600,-500.0,0.00012326,2]
[401992675,1768449032609,-500.0,0.00012326,2]
[401992676,1768449032619,-500.0,0.00012326,2]
[401992677,1768449032629,-500.0,0.00012326,2]
[401992678,1768449032639,-500.0,0.00012326,2]
[401992679,1768449032648,-500.0,0.00012326,2]
[401992680,1768449032658,-210.66751218,0.00012326,2]
[401992681,1768449032668,-500.0,0.00012326,2]
[401992682,1768449032678,-500.0,0.00012326,2]
[401992683,1768449032688,-500.0,0.00012326,2]
[401992684,1768449032698,-500.0,0.00012326,2]
[401992685,1768449032707,-500.0,0.00012326,2]
[401992686,1768449032717,-500.0,0.00012326,2]
[401992687,1768449032726,-500.0,0.00012326,2]
[401992688,1768449032736,-500.0,0.00012326,2]
[401992689,1768449032746,-500.0,0.00012326,2]
[401992690,1768449032755,-500.0,0.00012326,2]
[401992691,1768449032765,-500.0,0.00012326,2]
[401992692,1768449032775,-500.0,0.00012326,2]
[401992693,1768449032784,-500.0,0.00012326,2]
[401992694,1768449032794,-500.0,0.00012326,2]
[401992695,1768449032804,-500.0,0.00012326,2]
[401992696,1768449032813,-500.0,0.00012326,2]
[401992697,1768449032823,-500.0,0.00012326,2]
[401992698,1768449032834,-220.93040803,0.00012326,2]
[401992699,1768449032844,-500.0,0.00012326,2]
[401992700,1768449032853,-500.0,0.00012326,2]
[401992701,1768449032863,-500.0,0.00012326,2]
[401992702,1768449032873,-500.0,0.00012326,2]
[401992703,1768449032883,-500.0,0.00012326,2]
[401992704,1768449032894,-500.0,0.00012326,2]
[401992705,1768449032904,-500.0,0.00012326,2]
[401992706,1768449032914,-500.0,0.00012326,2]
[401992707,1768449032923,-500.0,0.00012326,2]
[401992708,1768449032933,-500.0,0.00012326,2]
[401992709,1768449032943,-500.0,0.00012326,2]
[401992710,1768449032964,-500.0,0.00012326,2]
[401992711,1768449032978,-500.0,0.00012326,2]
[401992712,1768449032988,-500.0,0.00012326,2]
[401992713,1768449032999,-500.0,0.00012326,2]
[401992714,1768449033010,-200.0,0.00012326,2]
[401992715,1768449033020,-500.0,0.00012326,2]
[401992716,1768449033030,-415.00000001,0.00012326,2]
[401992717,1768449033040,-500.0,0.00012326,2]
[401992718,1768449033051,-500.0,0.00012326,2]
[401992719,1768449033061,-500.0,0.00012326,2]
[401992720,1768449033071,-500.0,0.00012326,2]
[401992721,1768449033082,-500.0,0.00012326,2]
[401992722,1768449033093,-500.0,0.00012326,2]
[401992723,1768449033104,-399.71441625,0.00012326,2]
[401992724,1768449033116,-500.0,0.00012326,2]
[401992725,1768449033126,-500.0,0.00012326,2]
[401992726,1768449033136,-500.0,0.00012326,2]
[401992727,1768449033146,-500.0,0.00012326,2]
[401992728,1768449033156,-500.0,0.00012326,2]
[401992729,1768449033169,-500.0,0.00012326,2]
[401992730,1768449033178,-500.0,0.00012326,2]
[401992731,1768449033188,-500.0,0.00012326,2]
[401992732,1768449033198,-500.0,0.00012326,2]
[401992733,1768449033210,-500.0,0.00012326,2]
[401992734,1768449033220,-500.0,0.00012326,2]
[401992735,1768449033230,-500.0,0.00012326,2]
[401992736,1768449033242,-500.0,0.00012326,2]
[401992737,1768449033252,-500.0,0.00012326,2]
[401992738,1768449033261,-500.0,0.00012326,2]
[401992739,1768449033272,-500.0,0.00012326,2]
[401992740,1768449033281,-500.0,0.00012326,2]
[401992741,1768449033291,-500.0,0.00012326,2]
[401992742,1768449033301,-500.0,0.00012326,2]
[401992743,1768449033311,-500.0,0.00012326,2]
[401992744,1768449033321,-500.0,0.00012326,2]
[401992745,1768449033331,-500.0,0.00012326,2]
[401992746,1768449033340,-500.0,0.00012326,2]
[401992747,1768449033351,-500.0,0.00012326,2]
[401992748,1768449033360,-500.0,0.00012326,2]
[401992749,1768449033370,-500.0,0.00012326,2]
[401992750,1768449033380,-500.0,0.00012326,2]
[401992751,1768449033390,-500.0,0.00012326,2]
[401992752,1768449033399,-500.0,0.00012326,2]
[401992753,1768449033409,-500.0,0.00012326,2]
[401992754,1768449033419,-500.0,0.00012326,2]
[401992755,1768449033429,-500.0,0.00012326,2]
[401992756,1768449033440,-405.81670383,0.00012326,2]
[401992757,1768449033450,-588.24289795,0.00012326,2]
[401992758,1768449033465,-588.24289795,0.00012326,2]
[401992759,1768449033474,-588.24289795,0.00012326,2]
[401992760,1768449033484,-588.24289795,0.00012326,2]
[401992761,1768449033495,-588.24289795,0.00012326,2]
[401992762,1768449033505,-588.24289795,0.00012326,2]
[401992763,1768449033515,-588.24289795,0.00012326,2]
[401992764,1768449033525,-588.24289795,0.00012326,2]
[401992765,1768449033534,-588.24289795,0.00012326,2]
[401992766,1768449033545,-588.24289795,0.00012326,2]
[401992767,1768449033555,-588.24289795,0.00012326,2]
[401992768,1768449033565,-588.24289795,0.00012326,2]
[401992769,1768449033575,-588.24289795,0.00012326,2]
[401992770,1768449033584,-588.24289795,0.00012326,2]
[401992771,1768449033594,-588.24289795,0.00012326,2]
[401992772,1768449033604,-588.24289795,0.00012326,2]
[401992773,1768449033614,-588.24289795,0.00012326,2]
[401992774,1768449033624,-588.24289795,0.00012326,2]
[401992775,1768449033634,-588.24289795,0.00012326,2]
[401992776,1768449033644,-588.24289795,0.00012326,2]
[401992777,1768449033654,-588.24289795,0.00012326,2]
[401992778,1768449033664,-588.24289795,0.00012326,2]
[401992779,1768449033674,-588.24289795,0.00012326,2]
[401992780,1768449033685,-588.24289795,0.00012326,2]
[401992781,1768449033695,-588.24289795,0.00012326,2]
[401992782,1768449033706,-588.24289795,0.00012326,2]
[401992783,1768449033717,-588.24289795,0.00012326,2]
[401992784,1768449033727,-588.24289795,0.00012326,2]
[401992785,1768449033737,-588.24289795,0.00012326,2]
[401992786,1768449033747,-588.24289795,0.00012326,2]
[401992787,1768449033757,-588.24289795,0.00012326,2]
[401992788,1768449033767,-588.24289795,0.00012326,2]
[401992789,1768449033777,-588.24289795,0.00012326,2]
[401992790,1768449033787,-588.24289795,0.00012326,2]
[401992791,1768449033797,-588.24289795,0.00012326,2]
[401992792,1768449033808,-588.24289795,0.00012326,2]
[401992793,1768449033818,-588.24289795,0.00012326,2]
[401992794,1768449033828,-588.24289795,0.00012326,2]
[401992795,1768449033838,-588.24289795,0.00012326,2]
[401992796,1768449033848,-588.24289795,0.00012326,2]
[401992797,1768449033858,-500.0,0.00012326,2]
[401992798,1768449033868,-500.0,0.00012326,2]
[401992799,1768449033878,-500.0,0.00012326,2]
[401992800,1768449033888,-500.0,0.00012326,2]
[401992801,1768449033898,-500.0,0.00012326,2]
[401992802,1768449033908,-500.0,0.00012326,2]
[401992803,1768449033918,-500.0,0.00012326,2]
[401992804,1768449033928,-500.0,0.00012326,2]
[401992805,1768449033937,-500.0,0.00012326,2]
[401992806,1768449033948,-500.0,0.00012326,2]
[401992807,1768449033957,-500.0,0.00012326,2]
[401992808,1768449033970,-500.0,0.00012326,2]
[401992809,1768449033980,-500.0,0.00012326,2]
[401992810,1768449033990,-500.0,0.00012326,2]
[401992811,1768449033999,-500.0,0.00012326,2]
[401992812,1768449034009,-500.0,0.00012326,2]
[401992813,1768449034020,-500.0,0.00012326,2]
[401992814,1768449034030,-500.0,0.00012326,2]
[401992815,1768449034039,-500.0,0.00012326,2]
[401992816,1768449034050,-500.0,0.00012326,2]
[401992817,1768449034060,-500.0,0.00012326,2]
[401992818,1768449034069,-500.0,0.00012326,2]
[401992819,1768449034079,-500.0,0.00012326,2]
[401992820,1768449034089,-500.0,0.00012326,2]
[401992821,1768449034099,-500.0,0.00012326,2]
[401992822,1768449034109,-500.0,0.00012326,2]
[401992823,1768449034120,-500.0,0.00012326,2]
[401992824,1768449034130,-500.0,0.00012326,2]
[401992825,1768449034139,-500.0,0.00012326,2]
[401992826,1768449034149,-500.0,0.00012326,2]
[401992827,1768449034159,-500.0,0.00012326,2]
[401992828,1768449034171,-500.0,0.00012326,2]
[401992829,1768449034181,-500.0,0.00012326,2]
[401992830,1768449034190,-500.0,0.00012326,2]
[401992831,1768449034199,-500.0,0.00012326,2]
[401992832,1768449034210,-500.0,0.00012326,2]
[401992833,1768449034220,-500.0,0.00012326,2]
[401992834,1768449034230,-500.0,0.00012326,2]
[401992835,1768449034240,-500.0,0.00012326,2]
[401992836,1768449034250,-500.0,0.00012326,2]
[401992837,1768449034260,-500.0,0.00012326,2]
[401992838,1768449034269,-320.67203891,0.00012326,2]
[401992839,1768449034279,-500.0,0.00012326,2]
[401992840,1768449034288,-500.0,0.00012326,2]
[401992841,1768449034298,-500.0,0.00012326,2]
[401992842,1768449034308,-500.0,0.00012326,2]
[401992843,1768449034318,-500.0,0.00012326,2]
[401992844,1768449034328,-500.0,0.00012326,2]
[401992845,1768449034337,-500.0,0.00012326,2]
[401992846,1768449034347,-500.0,0.00012326,2]
[401992847,1768449034356,-500.0,0.00012326,2]
[401992848,1768449034366,-500.0,0.00012326,2]
[401992849,1768449034376,-500.0,0.00012326,2]
[401992850,1768449034386,-500.0,0.00012326,2]
[401992851,1768449034396,-500.0,0.00012326,2]
[401992852,1768449034407,-500.0,0.00012326,2]
[401992853,1768449034416,-500.0,0.00012326,2]
[401992854,1768449034426,-500.0,0.00012326,2]
[401992855,1768449034436,-500.0,0.00012326,2]
[401992856,1768449034446,-500.0,0.00012326,2]
[401992857,1768449034455,-298.29998971,0.00012326,2]
[401992865,1768449038453,-50000.0,0.00012326,2]
[401992866,1768449038464,-201.70001029,0.00012326,2]
[401992867,1768449038474,-500.0,0.00012326,2]
[401992868,1768449038484,-500.0,0.00012326,2]
[401992869,1768449038494,-500.0,0.00012326,2]
[401992870,1768449038504,-500.0,0.00012326,2]
[401992871,1768449038514,-500.0,0.00012326,2]
[401992872,1768449038523,-500.0,0.00012326,2]
[401992873,1768449038532,-500.0,0.00012326,2]
[401992874,1768449038542,-500.0,0.00012326,2]
[401992875,1768449038551,-500.0,0.00012326,2]
[401992876,1768449038560,-500.0,0.00012326,2]
[401992877,1768449038569,-500.0,0.00012326,2]
[401992878,1768449038579,-500.0,0.00012326,2]
[401992879,1768449038589,-500.0,0.00012326,2]
[401992880,1768449038598,-262.55779601,0.00012326,2]
[401992881,1768449038608,-500.0,0.00012326,2]
[401992882,1768449038618,-500.0,0.00012326,2]
[401992883,1768449038628,-500.0,0.00012326,2]
[401992884,1768449038637,-500.0,0.00012326,2]
[401992885,1768449038648,-500.0,0.00012326,2]
[401992886,1768449038658,-500.0,0.00012326,2]
[401992887,1768449038883,-500.0,0.00012326,2]
[401992888,1768449038903,-500.0,0.00012326,2]
[401992889,1768449038913,-500.0,0.00012326,2]
[401992890,1768449038923,-500.0,0.00012326,2]
[401992891,1768449038933,-500.0,0.00012326,2]
[401992892,1768449038943,-500.0,0.00012326,2]
[401992893,1768449038952,-500.0,0.00012326,2]
[401992894,1768449038962,-500.0,0.00012326,2]
[401992895,1768449038971,-500.0,0.00012326,2]
[401992896,1768449038980,-500.0,0.00012326,2]
[401992897,1768449038990,-490.55929438,0.00012326,2]
[401992898,1768449038999,-500.0,0.00012326,2]
[401992899,1768449039009,-500.0,0.00012326,2]
[401992900,1768449039018,-500.0,0.00012326,2]
[401992901,1768449039029,-500.0,0.00012326,2]
[401992902,1768449039039,-500.0,0.00012326,2]
[401992903,1768449039048,-500.0,0.00012326,2]
[401992904,1768449039058,-500.0,0.00012326,2]
[401992905,1768449039067,-500.0,0.00012326,2]
[401992906,1768449039076,-500.0,0.00012326,2]
[401992907,1768449039086,-500.0,0.00012326,2]
[401992908,1768449039095,-500.0,0.00012326,2]
[401992909,1768449039105,-500.0,0.00012326,2]
[401992910,1768449039114,-500.0,0.00012326,2]
[401992911,1768449039124,-500.0,0.00012326,2]
[401992912,1768449039133,-500.0,0.00012326,2]
[401992913,1768449039143,-500.0,0.00012326,2]
[401992914,1768449039154,-500.0,0.00012326,2]
[401992915,1768449039167,-500.0,0.00012326,2]
[401992916,1768449039178,-500.0,0.00012326,2]
[401992917,1768449039187,-500.0,0.00012326,2]
[401992918,1768449039196,-500.0,0.00012326,2]
[401992919,1768449039205,-500.0,0.00012326,2]
[401992920,1768449039219,-588.24289795,0.00012326,2]
[401992921,1768449039228,-500.0,0.00012326,2]
[401992922,1768449039239,-500.0,0.00012326,2]
[401992923,1768449039250,-500.0,0.00012326,2]
[401992924,1768449039259,-500.0,0.00012326,2]
[401992925,1768449039269,-588.24289795,0.00012326,2]
[401992926,1768449039279,-588.24289795,0.00012326,2]
[401992927,1768449039290,-588.24289795,0.00012326,2]
[401992928,1768449039299,-588.24289795,0.00012326,2]
[401992929,1768449039309,-588.24289795,0.00012326,2]
[401992930,1768449039319,-500.0,0.00012326,2]
[401992931,1768449039328,-500.0,0.00012326,2]
[401992932,1768449039337,-500.0,0.00012326,2]
[401992933,1768449039347,-500.0,0.00012326,2]
[401992934,1768449039357,-500.0,0.00012326,2]
[401992935,1768449039367,-500.0,0.00012326,2]
[401992936,1768449039376,-500.00000001,0.00012326,2]
[401992937,1768449039385,-500.0,0.00012326,2]
[401992938,1768449039396,-500.0,0.00012326,2]
[401992939,1768449039405,-350.0,0.00012326,2]
[401992940,1768449039414,-500.0,0.00012326,2]
[401992941,1768449039423,-500.0,0.00012326,2]
[401992942,1768449039433,-500.0,0.00012326,2]
[401992943,1768449039442,-500.0,0.00012326,2]
[401992944,1768449039452,-500.0,0.00012326,2]
[401992945,1768449039461,-500.0,0.00012326,2]
[401992946,1768449039471,-500.0,0.00012326,2]
[401992947,1768449039481,-500.0,0.00012326,2]
[401992948,1768449039490,-500.0,0.00012326,2]
[401992949,1768449039501,-500.0,0.00012326,2]
[401992950,1768449039510,-500.0,0.00012326,2]
[401992951,1768449039519,-500.0,0.00012326,2]
[401992952,1768449039528,-500.0,0.00012326,2]
[401992953,1768449039538,-500.0,0.00012326,2]
[401992954,1768449039547,-500.0,0.00012326,2]
[401992955,1768449039556,-500.0,0.00012326,2]
[401992956,1768449039565,-200.0,0.00012326,2]
[401992957,1768449039575,-500.0,0.00012326,2]
[401992958,1768449039584,-500.0,0.00012326,2]
[401992959,1768449039593,-300.0,0.00012326,2]
[401992960,1768449039602,-216.09228161,0.00012326,2]
[401992961,1768449039612,-275.76091764,0.00012328,2]
[401992962,1768449039621,-570.76,0.00012329,2]
[401992963,1768449039630,-500.0,0.00012329,2]
[401992964,1768449039639,-500.0,0.00012329,2]
[401992965,1768449039648,-500.0,0.00012329,2]
[401992966,1768449039658,-584.38994501,0.00012329,2]
[401992967,1768449039667,-500.0,0.00012329,2]
[401992968,1768449039677,-500.0,0.00012329,2]
[401992969,1768449039686,-500.0,0.00012329,2]
[401992970,1768449039695,-500.0,0.00012329,2]
[401992971,1768449039704,-500.0,0.00012329,2]
[401992972,1768449039714,-343.89945007,0.00012329,2]
[401992973,1768449039723,-187.11535511,0.00012384,2]
[401992974,1768449039732,-1124.71662056,0.00012384,2]
[401992975,1768449039741,-1124.71662056,0.00012384,2]
[401992976,1768449039750,-300.0,0.00012574,2]
[401992977,1768449039759,-300.0,0.00012574,2]
[401992978,1768449039769,-300.0,0.00012574,2]
[401992979,1768449039778,-300.0,0.00012574,2]
[401992980,1768449039787,-300.0,0.00012574,2]
[401992981,1768449039797,-300.0,0.00012574,2]
[401992982,1768449039806,-300.0,0.00012574,2]
[401992983,1768449039815,-300.0,0.00012574,2]
[401992984,1768449039825,-300.0,0.00012574,2]
[401992985,1768449039834,-300.0,0.00012574,2]
[401992986,1768449039843,-300.0,0.00012574,2]
[401992987,1768449039853,-300.0,0.00012574,2]
[401992988,1768449039862,-300.0,0.00012574,2]
[401992989,1768449039871,-300.0,0.00012574,2]
[401992990,1768449039880,-300.0,0.00012574,2]
[401992991,1768449039890,-600.0,0.00012824,2]
[401992992,1768449039899,-500.0,0.00012897,2]
[401992993,1768449039909,-156.87153581,0.00012897,2]
[401992994,1768449039918,-159.58454421,0.00012897,2]
[401992995,1768449039927,-203.09570311,0.00012897,2]
[401992996,1768449039937,-151.50799135,0.00012897,2]
[401992997,1768449039946,-209.20161349,0.00012897,2]
[401992998,1768449039955,-500.0,0.00012897,2]
[401992999,1768449039964,-500.0,0.00012897,2]
[401993000,1768449039973,-217.18719938,0.00012897,2]
[401993001,1768449039983,-151.84913523,0.00012897,2]
[401993002,1768449039992,-154.37468591,0.00012897,2]
[401993003,1768449040001,-500.0,0.00012897,2]
[401993004,1768449040011,-264.20798657,0.00012897,2]
[401993005,1768449040020,-232.52987047,0.00012897,2]
[401993006,1768449040029,-239.82105911,0.00012997,2]
[401993007,1768449040039,-151.60202458,0.00012997,2]
[401993008,1768449040048,-202.62570857,0.00012997,2]
[401993009,1768449040056,-500.0,0.00013034,2]
[401993010,1768449040066,-500.0,0.00013034,2]
[401993011,1768449040076,-500.0,0.00013034,2]
[401993012,1768449040085,-500.0,0.00013034,2]
[401993013,1768449040094,-151.83334327,0.00013034,2]
[401993014,1768449040103,-600.53857701,0.00013171,2]
[401993015,1768449040112,-500.0,0.00013171,2]
[401993016,1768449040122,-347.13365121,0.00013171,2]
[401993018,1768449040132,-462.2385433,0.00013171,2]
[401993020,1768449040142,-151.0,0.00013171,2]
[401993021,1768449040151,-151.0,0.00013272,2]
[401993024,1768449040161,-500.0,0.00013273,2]
[401993026,1768449040175,-500.0,0.00013273,2]
[401993028,1768449040184,-500.53741414,0.00013273,2]
[401993030,1768449040193,-500.0,0.00013273,2]
[401993032,1768449040202,-500.0,0.00013273,2]
[401993033,1768449040211,-500.0,0.00013273,2]
[401993035,1768449040223,-500.0,0.00013273,2]
[401993037,1768449040233,-500.0,0.00013273,2]
[401993038,1768449040245,-500.0,0.00013273,2]
[401993040,1768449040259,-500.0,0.00013273,2]
[401993042,1768449040269,-500.0,0.00013273,2]
[401993043,1768449040282,-588.24951668,0.00013273,2]
[401993045,1768449040292,-500.0,0.00013273,2]